lending/lending_fUSD_20251107
["ID","MTS","AMOUNT","RATE_DAILY","PERIOD"]
[393330960,1762485046124,-151.0,0.00020296,7]
[393330961,1762485046134,-165.327163,0.00020296,7]
[393330962,1762485046143,-300.658385,0.00020296,7]
[393330963,1762485046153,-151.0,0.00020296,7]
[393330964,1762485046163,-151.0,0.00020296,7]
[393330965,1762485046172,-2000.0,0.000203,2]
[393330966,1762485046182,-337.04388301,0.00020323,2]
[393330967,1762485046192,-571.0,0.00020366,6]
[393330968,1762485046201,-169.0357547,0.0002037,2]
[393330969,1762485046210,-337.3809269,0.00020462,2]
[393330970,1762485046220,-151.0,0.000205,2]
[393330971,1762485046231,-571.0,0.00020503,6]
[393330972,1762485046241,-502.0,0.00020521,2]
[393330973,1762485046250,-21310.76,0.00020548,2]
[393330974,1762485046260,-151.0,0.00020548,7]
[393330975,1762485046269,-151.0,0.00020548,7]
[393330976,1762485046278,-151.0,0.00020548,7]
[393330977,1762485046287,-289.137584,0.00020548,7]
[393330978,1762485046297,-1316.0,0.0002055,2]
[393330979,1762485046307,-1596.0,0.0002055,2]
[393330980,1762485046322,-820.0,0.0002055,2]
[393330981,1762485046334,-812.0,0.0002055,2]
[393330982,1762485046344,-1273.0,0.0002055,2]
[393330983,1762485046354,-266.75267811,0.00020584,5]
[393330984,1762485046364,-477.99034883,0.000206,7]
[393330985,1762485046374,-1008.49713198,0.00020616,2]
[393330986,1762485046384,-2014.60520456,0.00020616,2]
[393330987,1762485046395,-2087.9034712,0.00020616,2]
[393330988,1762485046405,-2000.0,0.00020616,2]
[393330989,1762485046414,-560.77369819,0.00020616,2]
[393330990,1762485046423,-503.85054346,0.00020616,2]
[393330991,1762485046432,-947.04253758,0.00020616,2]
[393330992,1762485046442,-571.0,0.0002064,6]
[393330993,1762485046451,-150.0,0.00020698,5]
[393330994,1762485046461,-7259.99812824,0.000207,2]
[393330995,1762485046667,-173.481491,0.0002,7]
[393330996,1762485046676,-102.6650104,0.000207,2]
[393330997,1762485046691,-500.0,0.00017997,2]
[393330998,1762485046700,-15087.40547685,0.000207,2]
[393330999,1762485046709,-698.56,0.00020703,2]
[393331000,1762485046718,-698.56,0.00020703,2]
[393331001,1762485046729,-1407.67,0.00020703,2]
[393331002,1762485046741,-571.0,0.00020777,6]
[393331003,1762485046750,-165.8040969,0.00020792,2]
[393331004,1762485046759,-1000.0,0.00020795,2]
[393331005,1762485046768,-1430.4968609,0.00020795,2]
[393331006,1762485046778,-410.3424993,0.00020795,2]
[393331008,1762485046787,-458.4739476,0.00020804,2]
[393331009,1762485046796,-429.0001473,0.00020809,2]
[393331010,1762485046805,-8489.1486969,0.00020809,2]
[393331011,1762485046815,-2000.0,0.00020879,2]
[393331012,1762485046825,-400.0,0.000209,7]
[393331013,1762485046836,-571.0,0.00020914,6]
[393331014,1762485046846,-1188.0,0.00020935,2]
[393331015,1762485046858,-905.0,0.00020935,2]
[393331016,1762485046868,-559.0,0.0002096,2]
[393331017,1762485046878,-6659.0,0.0002096,2]
[393331018,1762485046888,-2142.0,0.0002096,2]
[393331019,1762485046898,-150.0,0.00020963,2]
[393331020,1762485046909,-150.0,0.00020963,2]
[393331021,1762485046918,-150.0,0.00020963,2]
[393331022,1762485046928,-150.0,0.00020963,2]
[393331023,1762485046937,-150.0,0.00020963,2]
[393331025,1762485046947,-150.0,0.00020963,2]
[393331027,1762485046957,-150.0,0.00020963,2]
[393331028,1762485046967,-3075.11693826,0.00020963,2]
[393331030,1762485047098,-6476.0,0.0001796,2]
[393331031,1762485047108,-500.0,0.00017999,2]
[393331032,1762485047118,-500.0,0.00017999,2]
[393331033,1762485047128,-500.0,0.00017999,2]
[393331035,1762485047138,-500.0,0.00017999,2]
[393331037,1762485047147,-173.481491,0.00018,2]
[393331038,1762485047157,-173.481491,0.00018,2]
[393331039,1762485047166,-173.481491,0.00018,2]
[393331040,1762485047176,-874.46145275,0.00018333,2]
[393331041,1762485047185,-173.481491,0.00019,2]
[393331042,1762485047195,-173.481491,0.00019,2]
[393331043,1762485047204,-173.481491,0.0002,7]
[393331044,1762485047214,-6476.0,0.0002096,2]
[393331045,1762485047224,-348.88306174,0.00020963,2]
[393331046,1762485047233,-574.0,0.00020963,2]
[393331047,1762485047242,-607.0,0.00020963,2]
[393331048,1762485047252,-172.43,0.0002098,2]
[393331049,1762485047261,-500.0,0.00021,3]
[393331050,1762485047270,-20000.0,0.00021,2]
[393331051,1762485047279,-41417.27131563,0.00021,2]
[393331052,1762485047289,-1182.05722643,0.00021,2]
[393331053,1762485047298,-195.11524369,0.00021,2]
[393331054,1762485047307,-350.0,0.00021,2]
[393331055,1762485047321,-577.46498832,0.00021051,6]
[393331056,1762485047330,-12396.68,0.00021068,2]
[393331057,1762485047340,-212.29,0.00021114,2]
[393331058,1762485047349,-184.38,0.00021114,2]
[393331059,1762485047358,-150.0,0.00021114,2]
[393331060,1762485047367,-303.31,0.00021114,2]
[393331061,1762485047377,-300.0,0.00021114,2]
[393331062,1762485047386,-150.0,0.00021114,2]
[393331063,1762485047398,-150.0,0.00021114,2]
[393331064,1762485047408,-150.93,0.00021114,2]
[393331065,1762485047417,-301.72,0.00021114,2]
[393331066,1762485047426,-415.71,0.00021114,2]
[393331067,1762485047435,-831.42,0.00021114,2]
[393331068,1762485047444,-150.0,0.00021114,2]
[393331069,1762485047454,-415.71,0.00021114,2]
[393331070,1762485047464,-415.71,0.00021114,2]
[393331071,1762485047473,-150.0,0.00021114,2]
[393331072,1762485047482,-415.71,0.00021114,2]
[393331073,1762485047491,-150.0,0.00021114,2]
[393331074,1762485047500,-831.24,0.00021114,2]
[393331075,1762485047509,-831.42,0.00021114,2]
[393331076,1762485047519,-415.71,0.00021114,2]
[393331077,1762485047528,-415.71,0.00021114,2]
[393331078,1762485047537,-415.71,0.00021114,2]
[393331079,1762485047547,-176.91,0.00021118,2]
[393331080,1762485047557,-176.91,0.00021118,2]
[393331081,1762485047566,-176.91,0.00021118,2]
[393331082,1762485047576,-1000.0,0.00021146,2]
[393331083,1762485047586,-150.0,0.00021146,2]
[393331084,1762485047595,-2035.98606181,0.00021164,2]
[393331085,1762485047605,-210.66,0.00021169,2]
[393331086,1762485047615,-587.0,0.00021196,2]
[393331087,1762485047625,-587.0,0.00021196,2]
[393331088,1762485047634,-6315.01,0.0002137,2]
[393331089,1762485047644,-2351.0,0.00021406,2]
[393331090,1762485047653,-151.0,0.000215,2]
[393331091,1762485047663,-57433.0218314,0.000215,2]
[393331092,1762485047672,-220.0416091,0.000215,2]
[393331093,1762485047681,-250.0,0.00021694,2]
[393331094,1762485047690,-2000.0,0.00021879,2]
[393331095,1762485047700,-172.43,0.00021892,2]
[393331096,1762485047709,-5000.0,0.00021918,2]
[393331097,1762485047718,-151.0,0.00021918,7]
[393331098,1762485047728,-151.0,0.00021918,7]
[393331099,1762485047886,-151.0,0.00021918,7]
[393331100,1762485047896,-500.0,0.00021918,2]
[393331101,1762485047907,-150.0,0.00021918,2]
[393331102,1762485047916,-415.71,0.00021936,2]
[393331103,1762485047925,-668.3,0.00021936,2]
[393331104,1762485047934,-549.16,0.00021936,2]
[393331105,1762485047944,-549.16,0.00021936,2]
[393331106,1762485047954,-549.16,0.00021936,2]
[393331107,1762485047963,-549.16,0.00021936,2]
[393331108,1762485047973,-549.16,0.00021936,2]
[393331109,1762485047982,-549.16,0.00021936,2]
[393331110,1762485047991,-555.95,0.00021936,2]
[393331111,1762485048000,-737.85,0.00021936,2]
[393331112,1762485048009,-169.08,0.00021936,2]
[393331113,1762485048018,-169.04,0.00021936,2]
[393331114,1762485048028,-169.04,0.00021936,2]
[393331115,1762485048037,-169.04,0.00021936,2]
[393331116,1762485048047,-165.64761018,0.00021967,2]
[393331117,1762485048057,-4143.52503329,0.00022,2]
[393331118,1762485048066,-4107.17214566,0.00022,2]
[393331119,1762485048075,-160.97,0.00022,2]
[393331120,1762485048084,-151.0,0.00022,2]
[393331121,1762485048093,-788.05090627,0.00022,7]
[393331122,1762485048102,-117702.4537717,0.00022,4]
[393331123,1762485048111,-162.65,0.00022,4]
[393331124,1762485048121,-23636.68,0.00022,7]
[393331125,1762485048131,-437.69673721,0.00022055,2]
[393331126,1762485048139,-489.8069685,0.000221,2]
[393331127,1762485048149,-238.0016999,0.0002211,2]
[393331128,1762485048158,-352.75556532,0.00022242,2]
[393331129,1762485048167,-151.0,0.000223,2]
[393331130,1762485048175,-152.0,0.00022378,3]
[393331131,1762485048184,-35159.08642138,0.000225,2]
[393331132,1762485048193,-162.37318191,0.00022537,2]
[393331133,1762485048202,-517.95567933,0.0002271,2]
[393331134,1762485048211,-152.0,0.00022742,4]
[393331135,1762485048220,-338.08,0.00022758,2]
[393331136,1762485048229,-169.08,0.00022758,2]
[393331137,1762485048238,-172.43,0.00022804,2]
[393331138,1762485048247,-2000.0,0.00022879,2]
[393331139,1762485048256,-19201.75201872,0.000229,2]
[393331140,1762485048264,-628.19271841,0.00023,7]
[393331141,1762485048273,-435.50479199,0.00023,2]
[393331142,1762485048282,-997.64492603,0.00023,2]
[393331143,1762485048291,-400.0,0.00023,2]
[393331144,1762485048299,-2560.15769233,0.000231,2]
[393331145,1762485048308,-152.0,0.00023106,5]
[393331146,1762485048321,-823.0,0.00023132,2]
[393331147,1762485048330,-823.0,0.00023132,2]
[393331148,1762485048340,-157.3,0.00023166,2]
[393331149,1762485048349,-606.84,0.00023166,2]
[393331150,1762485048358,-9656.71387953,0.00023186,2]
[393331151,1762485048367,-51655.6782552,0.000232,2]
[393331152,1762485048377,-1000.0,0.0002326,2]
[393331153,1762485048386,-5000.0,0.00023286,2]
[393331154,1762485048404,-5000.0,0.00023286,2]
[393331155,1762485048422,-11562.81343481,0.00023333,7]
[393331156,1762485048437,-152.0,0.0002347,6]
[393331157,1762485048446,-3292.0,0.00023476,2]
[393331158,1762485048455,-200.0,0.000235,2]
[393331159,1762485048464,-1316.0,0.0002355,2]
[393331160,1762485048473,-1596.0,0.0002355,2]
[393331161,1762485048482,-820.0,0.0002355,2]
[393331162,1762485048491,-812.0,0.0002355,2]
[393331163,1762485048500,-1273.0,0.0002355,2]
[393331164,1762485048509,-23636.68,0.000236,7]
[393331165,1762485048518,-172.43,0.00023716,2]
[393331166,1762485048527,-152.0,0.00023834,7]
[393331167,1762485048536,-2000.0,0.00023879,2]
[393331168,1762485048545,-1188.0,0.00023935,2]
[393331169,1762485048554,-905.0,0.00023935,2]
[393331170,1762485048562,-559.0,0.0002396,2]
[393331171,1762485048571,-6659.0,0.0002396,2]
[393331172,1762485048580,-2142.0,0.0002396,2]
[393331173,1762485048588,-150.0,0.00023963,2]
[393331174,1762485048598,-150.0,0.00023963,2]
[393331175,1762485048607,-3424.0,0.00023963,2]
[393331176,1762485048616,-574.0,0.00023963,2]
[393331177,1762485048625,-607.0,0.00023963,2]
[393331178,1762485048634,-150.0,0.00023996,2]
[393331179,1762485048643,-16047.19172971,0.00024,2]
[393331180,1762485048651,-1010.61467738,0.00024,2]
[393331181,1762485048660,-3600.0,0.00024,2]
[393331182,1762485048669,-773.15965514,0.00024,2]
[393331183,1762485048678,-1000.0,0.00024,14]
[393331184,1762485048687,-1028.02407952,0.00024,14]
[393331185,1762485048696,-2000.0,0.00024,2]
[393331186,1762485048705,-165.64761018,0.000241,2]
[393331187,1762485048715,-9999.99,0.00024174,2]
[393331188,1762485048724,-18604.15,0.00024174,2]
[393331189,1762485048733,-7789.24,0.00024174,2]
[393331190,1762485048742,-152.0,0.00024198,8]
[393331191,1762485048751,-3658.78635368,0.0002421,2]
[393331192,1762485048760,-417.5457055,0.0002421,2]
[393331193,1762485048769,-250.0,0.00024544,2]
[393331194,1762485048778,-162.12917968,0.0002455,15]
[393331195,1762485048787,-152.0,0.00024562,9]
[393331196,1762485048796,-172.43,0.00024629,2]
[393331197,1762485048805,-591.3525063,0.0002465,2]
[393331198,1762485048814,-1130.08,0.00024658,2]
[393331199,1762485048823,-1000.0,0.00024658,2]
[393331200,1762485048832,-151.0,0.00024658,7]
[393331201,1762485048841,-151.0,0.00024658,7]
[393331202,1762485048850,-151.000013,0.00024658,7]
[393331203,1762485048860,-151.0,0.00024658,7]
[393331204,1762485048869,-151.0,0.00024658,7]
[393331205,1762485048878,-151.0,0.00024658,7]
[393331206,1762485048888,-151.0,0.00024658,7]
[393331207,1762485048897,-151.0,0.00024658,7]
[393331208,1762485048905,-151.0,0.00024658,7]
[393331209,1762485048915,-165.37256016,0.000248,30]
[393331210,1762485048924,-227853.50951811,0.000248,2]
[393331211,1762485048943,-173.481491,0.00018,2]
[393331212,1762485048952,-886.22073439,0.000248,2]
[393331213,1762485048963,-334.34575419,0.000248,2]
[393331214,1762485048974,-1079.19587345,0.000248,2]
[393331215,1762485048984,-6126.58011758,0.000248,2]
[393331216,1762485048995,-2554.8,0.000248,2]
[393331217,1762485049425,188.90822162,0.00038733,120]
[393331218,1762485049582,-1364.38713237,0.00017944,2]
[393331219,1762485049592,-311.34717988,0.00018,2]
[393331220,1762485049603,-199.12261654,0.00018,2]
[393331221,1762485049615,-173.481491,0.00018,2]
[393331222,1762485049626,-173.481491,0.00018,2]
[393331223,1762485049638,-519.800236,0.00018,2]
[393331224,1762485049649,-519.800236,0.00018,2]
[393331225,1762485049661,-519.800236,0.00018,2]
[393331226,1762485049672,-519.800236,0.00018,2]
[393331227,1762485049684,-519.800236,0.00018,2]
[393331228,1762485049695,-519.800236,0.00018,2]
[393331229,1762485049706,-1364.38713237,0.00018189,2]
[393331230,1762485049717,-173.481491,0.00019,2]
[393331231,1762485049726,-173.481491,0.00019,2]
[393331232,1762485049738,-173.481491,0.00019,2]
[393331233,1762485049750,-519.800236,0.00019,2]
[393331234,1762485049761,-173.481491,0.00019,2]
[393331235,1762485049773,-519.800236,0.00019,2]
[393331236,1762485049785,-519.800236,0.00019,2]
[393331237,1762485049796,-519.800236,0.00019,2]
[393331238,1762485049809,-519.800236,0.00019,2]
[393331239,1762485049822,-519.800236,0.00019,2]
[393331240,1762485049834,-173.481491,0.0002,7]
[393331241,1762485049846,-173.481492,0.0002,7]
[393331242,1762485049857,-519.800236,0.0002,7]
[393331243,1762485049871,-519.800236,0.0002,7]
[393331244,1762485049883,-6476.0,0.0002396,2]
[393331245,1762485049895,-21724.74487028,0.000248,2]
[393331246,1762485049907,-269219.90764816,0.000248,3]
[393331247,1762485049920,-304871.13015766,0.000248,3]
[393331248,1762485049934,-2518.88504,0.000248,3]
[393331249,1762485049954,-519.800236,0.0002,7]
[393331250,1762485049967,-348.00739858,0.000248,3]
[393331251,1762485049981,-385.5286216,0.000248,3]
[393331268,1762485136815,500.0,0.00038733,120]
[393331269,1762485137034,500.0,0.00038733,120]
[393331270,1762485137289,500.0,0.00038733,120]
[393331271,1762485137530,500.0,0.00038733,120]
[393331272,1762485137757,500.0,0.00038733,120]
[393331273,1762485138008,500.0,0.00038733,120]
[393331274,1762485138242,209.71497546,0.00038733,120]
[393331279,1762485186966,4750765.65106432,0.00030137,120]
[393331286,1762485455870,344.77692667,0.00038733,30]
[393331288,1762485512454,247.13775315,0.00038733,120]
[393331292,1762485761963,-174.156914,0.00017469,2]
[393331293,1762485761985,-325.0,0.00017557,2]
[393331294,1762485762008,-300.0,0.00017645,2]
[393331295,1762485762032,-1200.0,0.00017646,2]
[393331296,1762485762054,-300.0,0.00017646,2]
[393331297,1762485762076,-550.0,0.00017646,2]
[393331298,1762485762099,-1200.0,0.00017646,2]
[393331299,1762485762123,-955.07099274,0.00017647,2]
[393331300,1762485762145,-165.64761018,0.00017647,2]
[393331301,1762485762167,-465.66236858,0.00017647,2]
[393331302,1762485762189,-500.0,0.00017673,2]
[393331303,1762485762211,-500.0,0.00017673,2]
[393331304,1762485762233,-230.27083066,0.00017698,2]
[393331305,1762485762256,-385.48485231,0.00017698,2]
[393331306,1762485762280,-500.0,0.00017698,2]
[393331307,1762485762301,-217.20501353,0.00017698,2]
[393331308,1762485762325,-500.0,0.00017698,2]
[393331309,1762485762347,-158.45181949,0.00017698,2]
[393331310,1762485762371,-500.0,0.00017698,2]
[393331311,1762485762395,-500.0,0.00017698,2]
[393331312,1762485762420,-489.50680024,0.00017698,2]
[393331313,1762485762444,-221.05631113,0.00017698,2]
[393331314,1762485762467,-500.0,0.00017698,2]
[393331315,1762485762488,-507.61057282,0.00017698,2]
[393331316,1762485762510,-500.0,0.00017698,2]
[393331317,1762485762711,-477.99034883,0.00017699,2]
[393331318,1762485762736,-10886.88556549,0.00017699,2]
[393331319,1762485960148,296.69101894,8e-05,2]
[393331320,1762485963983,9345.04476427,0.00011,2]
[393331323,1762485975294,128536.42,0.00038685,120]
[393331325,1762486070373,358.27421679,0.00015,2]
[393331326,1762486070397,10000.01,0.00015,2]
[393331327,1762486070420,10000.01,0.00015,2]
[393331328,1762486070442,10000.01,0.00015,2]
[393331329,1762486070465,2996.25016497,0.00015,2]
[393331330,1762486083017,500.0,0.00038685,30]
[393331335,1762486115130,7003.75983503,0.00015,3]
[393331336,1762486115152,10000.01,0.00015,3]
[393331337,1762486115178,10000.01,0.00015,3]
[393331338,1762486115200,10000.01,0.00015,3]
[393331339,1762486115222,10000.01,0.00015,3]
[393331340,1762486115244,10000.01,0.00015,3]
[393331341,1762486115266,10000.01,0.00015,3]
[393331342,1762486116128,-332.54054565,0.00015,3]
[393331343,1762486118230,-300.00772377,0.00015,3]
[393331344,1762486119753,-496.99827417,0.00015,3]
[393331345,1762486122506,-185.643281,0.00015,3]
[393331346,1762486126442,-193.77476996,0.00015,3]
[393331347,1762486129633,-278.24229032,0.00015,3]
[393331348,1762486131217,-10000.01,0.00015,3]
[393331349,1762486131333,-10000.01,0.00015,3]
[393331350,1762486131430,-10000.01,0.00015,3]
[393331351,1762486132338,-172.7793,0.00015,3]
[393331352,1762486134422,-161.55758847,0.00015,3]
[393331353,1762486134488,-10000.01,0.00015,3]
[393331354,1762486134614,-10000.01,0.00015,3]
[393331355,1762486137851,-205.33489505,0.00015,3]
[393331356,1762486143791,-10000.01,0.00015,3]
[393331357,1762486143814,-10000.01,0.00015,3]
[393331358,1762486143830,-10000.01,0.00015,3]
[393331359,1762486144698,-246.1582886,0.00015,3]
[393331360,1762486146287,-343.99274121,0.00015,3]
[393331361,1762486150473,-210.61956548,0.00015,3]
[393331362,1762486155896,-193.32633915,0.00015,3]
[393331363,1762486157921,-441.90929933,0.00015,3]
[393331364,1762486160879,-339.88676447,0.00015,3]
[393331365,1762486162466,-151.0,0.00014997,2]
[393331366,1762486162490,-274.16471001,0.00015,3]
[393331367,1762486164070,-200.91891303,0.00015,3]
[393331368,1762486165625,-151.0,0.00015,3]
[393331369,1762486168221,-300.0378894,0.00015,3]
[393331370,1762486169763,-372.67651928,0.00015,3]
[393331371,1762486172412,-199.40832095,0.00015,3]
[393331372,1762486175175,-232.81635999,0.00015,3]
[393331373,1762486176034,177.91,0.00013468,2]
[393331374,1762486178489,-283.05367418,0.00015,3]
[393331375,1762486180656,-208.38015668,0.00015,3]
[393331376,1762486182767,-188.72673113,0.00015,3]
[393331377,1762486187977,9822.1,0.00014925,2]
[393331378,1762486187998,3944.555371,0.00014925,2]
[393331379,1762486188891,-174.31790982,0.00015,3]
[393331380,1762486190400,-277.64257055,0.00015,3]
[393331381,1762486192054,-216.03,0.00015,3]
[393331382,1762486193758,-249.5397118,0.00015,3]
[393331383,1762486197297,-210.6412385,0.00015,3]
[393331385,1762486203721,260.95,0.0001499,2]
[393331386,1762486204412,-173.79895283,0.00014999,2]
[393331387,1762486205003,5794.504629,0.0001499,2]
[393331388,1762486205231,2427.035371,0.0001499,2]
[393331389,1762486205285,7572.974629,0.0001499,2]
[393331390,1762486205311,648.565371,0.0001499,2]
[393331391,1762486206046,-126.20104717,0.00014999,2]
[393331392,1762486206071,-54.68645151,0.00014999,2]
[393331393,1762486208632,-280.20396988,0.00014999,2]
[393331394,1762486212839,-223.40392777,0.00014999,2]
[393331395,1762486213013,-641.70565084,0.00014999,2]
[393331396,1762486213040,-150.0,0.00014999,2]
[393331397,1762486217548,151.0,0.00014997,2]
[393331398,1762486219198,271.54693767,0.0001499,2]
[393331399,1762486226529,2126.36,0.00038686,120]
[393331400,1762486226781,2126.36,0.00038686,120]
[393331401,1762486226950,-193.0,0.00014999,2]
[393331402,1762486226971,-233.22899421,0.00014999,2]
[393331403,1762486227082,2126.36,0.00038686,120]
[393331404,1762486227499,2126.36,0.00038686,120]
[393331405,1762486227945,2126.36,0.00038686,120]
[393331406,1762486227992,-123.73586292,0.00014999,2]
[393331407,1762486228019,-284.11783731,0.00014999,2]
[393331408,1762486228045,-2500.0,0.00014999,2]
[393331409,1762486228077,2126.36,0.00038686,120]
[393331410,1762486228226,2126.36,0.00038686,120]
[393331411,1762486228472,2126.36,0.00038686,120]
[393331412,1762486228717,2126.36,0.00038686,120]
[393331413,1762486229091,2126.36,0.00038686,120]
[393331414,1762486229212,2126.36,0.00038686,120]
[393331415,1762486229460,2126.36,0.00038686,120]
[393331416,1762486229714,2126.36,0.00038686,120]
[393331417,1762486229974,2126.36,0.00038686,120]
[393331418,1762486230256,2126.36,0.00038686,120]
[393331419,1762486230517,2126.36,0.00038686,120]
[393331420,1762486230804,2126.36,0.00038686,120]
[393331421,1762486231071,2126.36,0.00038686,120]
[393331422,1762486231301,2126.36,0.00038686,120]
[393331423,1762486231545,2126.36,0.00038686,120]
[393331424,1762486231819,2126.36,0.00038686,120]
[393331425,1762486231860,222.01739411,0.00014999,2]
[393331426,1762486231898,281.82347303,0.00014999,2]
[393331427,1762486231937,500.0,0.00014999,2]
[393331437,1762486232452,527.24317338,0.00014999,2]
[393331458,1762486232691,2126.36,0.00038686,120]
[393331459,1762486232762,-300.0,0.00015,2]
[393331460,1762486232772,-195.0,0.00015,2]
[393331461,1762486232781,-3524.10698003,0.00015,3]
[393331462,1762486232826,2126.36,0.00038686,120]
[393331463,1762486232884,2126.44999998,0.00038686,120]
[393331467,1762486238125,-1524.15,0.00015,3]
[393331468,1762486238136,-2823794.2781105,0.00015,3]
[393331469,1762486238146,-2500.0,0.00015202,2]
[393331470,1762486238156,-481.26964055,0.00015202,2]
[393331471,1762486238165,-193.0,0.00015319,2]
[393331472,1762486238175,-193.0,0.00015319,2]
[393331473,1762486238184,-193.0,0.00015319,2]
[393331474,1762486238194,-20233.42459972,0.00015595,2]
[393331475,1762486238203,-300.0,0.00015694,2]
[393331476,1762486238212,-300.0,0.00015694,2]
[393331477,1762486238222,-311.77463511,0.00015694,2]
[393331478,1762486238231,-195.0,0.00015694,2]
[393331479,1762486238240,-20233.42459963,0.00015851,2]
[393331480,1762486238249,-498.90777974,0.000159,2]
[393331481,1762486238261,-477.99034883,0.00016,3]
[393331482,1762486238280,-20233.42459963,0.00016107,2]
[393331483,1762486238292,-255.0,0.00016124,2]
[393331484,1762486238301,-729.26735124,0.00016349,2]
[393331485,1762486238311,-800.15428099,0.00016349,2]
[393331486,1762486238321,-20233.42459963,0.00016363,2]
[393331487,1762486238331,-420.0,0.00016416,2]
[393331488,1762486238341,-157.16,0.00016449,2]
[393331489,1762486238351,-300.0,0.00016499,2]
[393331508,1762486238582,-300.0,0.00016499,2]
[393331509,1762486238592,-300.0,0.00016499,2]
[393331510,1762486238602,-300.0,0.00016499,2]
[393331511,1762486238612,-300.0,0.00016499,2]
[393331512,1762486238622,-195.0,0.00016499,2]
[393331513,1762486238631,-200.0,0.00016499,2]
[393331514,1762486238641,-200.0,0.00016499,2]
[393331515,1762486238650,-200.0,0.00016499,2]
[393331516,1762486238660,-200.0,0.00016499,2]
[393331517,1762486238670,-201.61257308,0.00016499,2]
[393331518,1762486238679,-197.18308,0.00016499,2]
[393331519,1762486238688,-193.0,0.00016499,2]
[393331520,1762486238698,-1680.0,0.00016499,2]
[393331521,1762486238708,-250.0,0.00016499,2]
[393331522,1762486238718,-150.0,0.00016499,2]
[393331523,1762486238731,-2500.0,0.00016499,2]
[393331524,1762486238741,-195.0,0.000165,2]
[393331525,1762486238750,-157.16,0.00016795,2]
[393331526,1762486238760,-250.0,0.00017,2]
[393331527,1762486238774,-157.16,0.00017142,2]
[393331529,1762486238786,-433.0,0.00017339,2]
[393331530,1762486238796,-500.0,0.00017457,2]
[393331531,1762486238807,-157.16,0.00017488,2]
[393331532,1762486238817,-446.6817,0.000175,2]
[393331533,1762486238827,-1000.0,0.00017599,2]
[393331534,1762486238837,-361.7143,0.00017599,2]
[393331535,1762486238847,-12326.8125,0.00017599,2]
[393331536,1762486238857,-859.56389343,0.000176,2]
[393331537,1762486238867,-300.0,0.000176,6]
[393331538,1762486238877,-157.4329967,0.00017673,2]
[393331539,1762486238886,-500.96404924,0.00017673,2]
[393331540,1762486238896,-214.84899531,0.00017673,2]
[393331541,1762486238906,-500.86715567,0.00017673,2]
[393331542,1762486238915,-426.80169483,0.00017673,2]
[393331543,1762486238924,-500.0,0.00017673,2]
[393331544,1762486238933,-410.82232731,0.00017673,2]
[393331545,1762486238943,-167.42370191,0.00017673,2]
[393331546,1762486238952,-500.0,0.00017673,2]
[393331547,1762486238962,-500.0,0.00017673,2]
[393331548,1762486238975,-274.37432305,0.00017673,2]
[393331549,1762486238984,-500.0,0.00017673,2]
[393331550,1762486238994,-500.0,0.00017673,2]
[393331551,1762486239004,-500.0,0.00017673,2]
[393331552,1762486239013,-477.99034883,0.00017673,2]
[393331553,1762486239023,-500.0,0.00017698,2]
[393331554,1762486239033,-500.0,0.00017698,2]